Cogmind - Beta 14 @@@ ROGUE MODE // 2024.08.26 @ 21:15:12 Player: Olafz Result: Destroyed by H-61 Shepherd with Heavy Assault Cannon Performance ------------- Evolutions (3) 1500 Regions Visited (7) 1400 Robots Destroyed (4) 20 Value Destroyed (90) 90 Prototype IDs (23) 460 Alien Tech Used (0) 0 Bonus (1228) 1228 TOTAL SCORE: 4698 Bonus ------- Pacifist 928 Aligned with FarCom 300 Cogmind --------- Core Integrity 0/700 Matter 280/300 Energy 98/100 System Corruption 0% Temperature Cool (0) Movement Core (50) Location -7/Factory Parts ------- > --- POWER (1) -------- (None) > --- PROPULSION (2) --- (None) > --- UTILITY (8) ------ Advanced Visual Processing Unit Improved Signal Interpreter Improved Terrain Scan Processor Improved Terrain Scan Processor > --- WEAPON (2) ------- Flail > --- INVENTORY (5) ---- Improved Terrain Scan Processor Improved Terrain Scan Processor ECM Suite Heavy Missile Launcher Field Lobotomy Kit (5) Peak State ------------ > --- POWER ------------ (None) > --- PROPULSION ------- (None) > --- UTILITY ---------- Advanced Visual Processing Unit Improved Signal Interpreter Improved Terrain Scan Processor Improved Terrain Scan Processor > --- WEAPON ----------- Flail > --- INVENTORY -------- Improved Terrain Scan Processor Improved Terrain Scan Processor ECM Suite Heavy Missile Launcher Field Lobotomy Kit [Rating: 16] Favorites ----------- Power None Propulsion None Utility Improved Terrain Scan Processor Device Improved Terrain Scanner Processor Improved Terrain Scan Processor Hackware System Shield Weapon Flail Impact Weapon Flail Build | -11 -10 -9 -9 -9 -8 -8 -7 ------- Run | Yrd Mat Mat Min Exi Min Mat Fac Slots Evolved 6 | . . 2 . . . 2 2 Power . | . . . . . . . . Propulsion . | . . . . . . . . Utility 6 | . . 2 . . . 2 2 Weapon . | . . . . . . . . Parts Attached 8 | . . . . . . 2 6 Power . | . . . . . . . . Engine . | . . . . . . . . Core . | . . . . . . . . Reactor . | . . . . . . . . Propulsion . | . . . . . . . . Treads . | . . . . . . . . Leg . | . . . . . . . . Wheel . | . . . . . . . . Hover . | . . . . . . . . Flight . | . . . . . . . . Utility 7 | . . . . . . 2 5 Device 2 | . . . . . . 1 1 Storage . | . . . . . . . . Processor 4 | . . . . . . . 4 Hackware 1 | . . . . . . 1 . Protection . | . . . . . . . . Artifact . | . . . . . . . . Weapon 1 | . . . . . . . 1 Energy Gun . | . . . . . . . . Energy Cannon . | . . . . . . . . Ballistic Gun . | . . . . . . . . Ballistic Cannon . | . . . . . . . . Launcher . | . . . . . . . . Special Weapon . | . . . . . . . . Impact Weapon 1 | . . . . . . . 1 Slashing Weapon . | . . . . . . . . Piercing Weapon . | . . . . . . . . Special Melee Weapon . | . . . . . . . . Unidentified Prototypes . | . . . . . . . . Parts Lost 3 | . . . . . . 2 1 Power . | . . . . . . . . Propulsion . | . . . . . . . . Utility 3 | . . . . . . 2 1 Weapon . | . . . . . . . . Highest Loss Streak 2 | . . . . . . 2 1 To Critical Strikes . | . . . . . . . . Average Slot Usage (%) 11 | . . . . . . 9 26 Device 1 | . . . . . . 5 . Processor 8 | . . . . . . . 20 Impact Weapon 1 | . . . . . . . 4 Peak Build Rating 16 | . . . . 1 1 7 16 Average Rating 5 | . . . . . 1 3 11 On Entrance . | . . . . . 1 1 1 Naked Turns 482 | . 43 59 151 106 60 51 12 Heaviest Build 2 | . . . . . . 1 2 Greatest Support 3 | 3 3 3 3 3 3 3 3 Greatest Overweight (x) . | . . . . . . . . Average Overweight (x) . | . . . . . . . . Largest Inventory Capacity 5 | 5 5 5 5 5 5 5 5 Average Capacity 5 | 5 5 5 5 5 5 5 5 Most Carried 5 | . . . . 1 1 2 5 Average Carried 2 | . . . . . 1 1 4 Final Capacity 5 | 5 5 5 5 5 5 5 5 Final Carried 5 | . . . . 1 1 2 5 Class Distribution -------------------- 86% | Mutant 13% | Scout Dominant Class ---------------- Mutant | -10/Materials Mutant | -9/Materials Mutant | -9/Mines Mutant | -9/Exiles Mutant | -8/Mines Scout | -8/Materials Mutant | -7/Factory Resources | -11 -10 -9 -9 -9 -8 -8 -7 ----------- Run | Yrd Mat Mat Min Exi Min Mat Fac Matter Collected 235 | 123 . . 77 . . . 35 Remotely . | . . . . . . . . Salvage Created 126 | . . . . . . . 126 Parts 5 | . . . . . . . 5 Haulers Intercepted . | . . . . . . . . Recyclers Shooed . | . . . . . . . . Parts Field Recycled . | . . . . . . . . Retrieved Matter . | . . . . . . . . Parts Self-Destructed . | . . . . . . . . Prevented . | . . . . . . . . Kills | -11 -10 -9 -9 -9 -8 -8 -7 ------- Run | Yrd Mat Mat Min Exi Min Mat Fac Combat Hostiles Destroyed 1 | . . . . . . . 1 Melee 1 | . . . . . . . 1 Classes Destroyed 3 | . . . . . . . 3 Worker 2 | . . . . . . . 2 Mechanic 1 | . . . . . . . 1 Programmer 1 | . . . . . . . 1 Best Kill Streak 3 | . . . . . . . 3 Combat Bots Only 1 | . . . . . . . 1 Max Kills in Single Turn 1 | . . . . . . . 1 Gunslinging . | . . . . . . . . Exploded . | . . . . . . . . Melee 1 | . . . . . . . 1 Uniques/NPCs Destroyed . | . . . . . . . . Combat | -11 -10 -9 -9 -9 -8 -8 -7 -------- Run | Yrd Mat Mat Min Exi Min Mat Fac Hostile Shots Fired 177 | . 8 2 . . . 43 124 Missed 78 | . 5 1 . . . 20 52 Damage Taken 1279 | . 20 14 . . . 419 826 Core 1170 | . 20 14 . . . 387 749 Absorbed by Shields . | . . . . . . . . Core Remaining (%) 79 | 100 92 . . . 96 29 . Volleys Fired . | . . . . . . . . Largest . | . . . . . . . . Hottest . | . . . . . . . . Shots Fired . | . . . . . . . . Gun . | . . . . . . . . Cannon . | . . . . . . . . Launcher . | . . . . . . . . Special . | . . . . . . . . Kinetic . | . . . . . . . . Thermal . | . . . . . . . . Explosive . | . . . . . . . . Electromagnetic . | . . . . . . . . Robot Hit Streak . | . . . . . . . . Robot Miss Streak . | . . . . . . . . Penetration Max . | . . . . . . . . Secondary Targets . | . . . . . . . . Shots Hit Robots 7 | . . . . . . . 7 Core Hits 2 | . . . . . . 1 1 Critical Kills . | . . . . . . . . Critical Parts Destroyed 2 | . . . . . . . 2 Critical Strikes 2 | . . . . . . . 2 Smash 2 | . . . . . . . 2 Melee Attacks 13 | . . . . . . . 13 Impact 13 | . . . . . . . 13 Slashing . | . . . . . . . . Piercing . | . . . . . . . . Sneak Attacks 3 | . . . . . . . 3 Combat Hostiles . | . . . . . . . . Follow-up Attacks . | . . . . . . . . Damage Inflicted 401 | . . . . . . 21 380 Guns . | . . . . . . . . Cannons . | . . . . . . . . Explosions . | . . . . . . . . Melee 380 | . . . . . . . 380 Ramming 21 | . . . . . . 21 . Kinetic . | . . . . . . . . Thermal . | . . . . . . . . Explosive . | . . . . . . . . Electromagnetic . | . . . . . . . . Impact 380 | . . . . . . . 380 Slashing . | . . . . . . . . Piercing . | . . . . . . . . Highest Corruption 4 | . . . . . . 4 . Average Corruption 3 | . . . . . . 3 . Corruption Purged . | . . . . . . . . Corruption Blocked . | . . . . . . . . Overload Shots . | . . . . . . . . Overflow Damage 167 | . . . . . . . 167 Projectiles . | . . . . . . . . Explosions . | . . . . . . . . Melee 167 | . . . . . . . 167 Knockbacks . | . . . . . . . . Impact . | . . . . . . . . Kinetic . | . . . . . . . . Secondary . | . . . . . . . . Self-Inflicted Damage 9 | . . . . . . 9 . Shots . | . . . . . . . . Rammed 5 | . . . . . . 5 . Targets Rammed 5 | . . . . . . 5 . Kicked . | . . . . . . . . Crushed . | . . . . . . . . Highest Temperature . | . . . . . . . . Average Temperature . | . . . . . . . . Received Heat Transfer 243 | . . 9 . . . 72 162 Siege Activations . | . . . . . . . . Robots Corrupted . | . . . . . . . . Combat Hostiles . | . . . . . . . . Parts Fried 3 | . . . . . . . 3 Impact Corruptions 5 | . . . . . . . 5 Robots Melted . | . . . . . . . . Combat Hostiles . | . . . . . . . . Parts Melted . | . . . . . . . . Heat Transferred . | . . . . . . . . Parts Sabotaged . | . . . . . . . . Parts Stolen . | . . . . . . . . Parts Stripped . | . . . . . . . . Power Chain Reactions . | . . . . . . . . Alert | -11 -10 -9 -9 -9 -8 -8 -7 ------- Run | Yrd Mat Mat Min Exi Min Mat Fac Peak Influence 190 | . 15 65 25 . . 78 190 Initial 35 | . . 5 25 . . . 35 Average 61 | . 11 44 25 . . 12 113 Maximum Alert Level . | . . . . . . . . Low Security (%) 100 | 100 100 100 100 . 100 100 100 Level 1 . | . . . . . . . . Level 2 . | . . . . . . . . Level 3 . | . . . . . . . . Level 4 . | . . . . . . . . Level 5 . | . . . . . . . . High Security . | . . . . . . . . Max Security . | . . . . . . . . Squads Dispatched 3 | . . . . . . 1 2 Investigation 1 | . . . . . . . 1 Extermination 1 | . . . . . . . 1 Reinforcement 1 | . . . . . . 1 . Assault . | . . . . . . . . Garrison . | . . . . . . . . Intercept . | . . . . . . . . Searches Triggered . | . . . . . . . . Construction Impeded . | . . . . . . . . Haulers Reinforced . | . . . . . . . . Active Scanning Responses . | . . . . . . . . Cargo Convoy Interrupts . | . . . . . . . . Stealth | -11 -10 -9 -9 -9 -8 -8 -7 --------- Run | Yrd Mat Mat Min Exi Min Mat Fac Distress Signals 1 | . . . . . . 1 . Communications Jammed . | . . . . . . . . Distress Signals . | . . . . . . . . Times Spotted 34 | . 4 4 . . . 15 11 Peak Tracking Total 11 | . 4 4 . . . 11 6 Tactical Retreats 6 | . . . . . . 2 4 Traps | -11 -10 -9 -9 -9 -8 -8 -7 ------- Run | Yrd Mat Mat Min Exi Min Mat Fac Traps Triggered . | . . . . . . . . Indirectly . | . . . . . . . . Trap Hack Attempts . | . . . . . . . . Triggered . | . . . . . . . . Disarmed . | . . . . . . . . Reprogrammed . | . . . . . . . . Reused . | . . . . . . . . Traps Extracted . | . . . . . . . . Installed . | . . . . . . . . Triggered . | . . . . . . . . Machines | -11 -10 -9 -9 -9 -8 -8 -7 ---------- Run | Yrd Mat Mat Min Exi Min Mat Fac Machines Disabled . | . . . . . . . . Max in Single Turn . | . . . . . . . . Machines Repaired . | . . . . . . . . Machines Dismantled . | . . . . . . . . Machines Sabotaged . | . . . . . . . . Overloaded Fab Kills . | . . . . . . . . Hacking | -11 -10 -9 -9 -9 -8 -8 -7 --------- Run | Yrd Mat Mat Min Exi Min Mat Fac Machines Accessed 6 | . . . . 1 . 3 2 Terminals 5 | . . . . . . 3 2 Fabricators . | . . . . . . . . Repair Stations . | . . . . . . . . Recycling Units . | . . . . . . . . Scanalyzers . | . . . . . . . . Garrison Access . | . . . . . . . . Total Hacks 18 | . . . . 1 . 11 6 Successful 7 | . . . . 1 . 4 2 Failed 11 | . . . . . . 7 4 Catastrophic 7 | . . . . . . 3 4 Database Lockouts . | . . . . . . . . Manual 18 | . . . . 1 . 11 6 Terminals 17 | . . . . . . 11 6 Fabricators . | . . . . . . . . Repair Stations . | . . . . . . . . Recycling Units . | . . . . . . . . Scanalyzers . | . . . . . . . . Garrison Access . | . . . . . . . . Terminal Hacks 2 | . . . . 1 . 1 . Level Access Points 1 | . . . . . . 1 . Derelict Proto ID Bank 1 | . . . . 1 . . . Fabricator Hacks . | . . . . . . . . Repair Station Hacks . | . . . . . . . . Recycling Unit Hacks . | . . . . . . . . Scanalyzer . | . . . . . . . . Garrison Access Hacks . | . . . . . . . . Unauthorized Hacks 5 | . . . . . . 3 2 Terminals 5 | . . . . . . 3 2 Botnet 5 | . . . . . . 3 2 Fabricators . | . . . . . . . . Repair Stations . | . . . . . . . . Recycling Units . | . . . . . . . . Scanalyzers . | . . . . . . . . Garrison Access . | . . . . . . . . Data Cores Recovered . | . . . . . . . . Used . | . . . . . . . . Hacking Detections 5 | . . . . . . 3 2 Full Trace Events 2 | . . . . . . 1 1 Feedback Events . | . . . . . . . . Feedback Blocked . | . . . . . . . . Robot Schematics Acquired . | . . . . . . . . Robots Built . | . . . . . . . . Authchips . | . . . . . . . . Time . | . . . . . . . . Total Robot Build Rating . | . . . . . . . . Part Schematics Acquired . | . . . . . . . . Parts Built . | . . . . . . . . Authchips . | . . . . . . . . Time . | . . . . . . . . Total Part Build Rating . | . . . . . . . . Parts Repaired . | . . . . . . . . Time . | . . . . . . . . Parts Recycled . | . . . . . . . . Recycled Matter . | . . . . . . . . Retrieved Matter . | . . . . . . . . Retrieved Components . | . . . . . . . . Parts Scanalyzed . | . . . . . . . . Part Schematics Acquired . | . . . . . . . . Parts Damaged . | . . . . . . . . Bothacking | -11 -10 -9 -9 -9 -8 -8 -7 ------------ Run | Yrd Mat Mat Min Exi Min Mat Fac Used RIF Installer . | . . . . . . . . Robots Hacked . | . . . . . . . . Non-combat . | . . . . . . . . Combat . | . . . . . . . . Robot Hacks Applied . | . . . . . . . . Relay Couplers Released . | . . . . . . . . Fabnet Peak Effective % . | . . . . . . . . Robots Rewired . | . . . . . . . . Allies Hacked . | . . . . . . . . Hacks Repelled . | . . . . . . . . Allies | -11 -10 -9 -9 -9 -8 -8 -7 -------- Run | Yrd Mat Mat Min Exi Min Mat Fac Total Allies . | . . . . . . . . Largest Group . | . . . . . . . . Highest-Rated Group . | . . . . . . . . Highest-Rated Ally . | . . . . . . . . Total Orders . | . . . . . . . . Ally Attacks . | . . . . . . . . Total Damage . | . . . . . . . . Kills . | . . . . . . . . Allies Corrupted . | . . . . . . . . Allies Melted . | . . . . . . . . Intel | -11 -10 -9 -9 -9 -8 -8 -7 ------- Run | Yrd Mat Mat Min Exi Min Mat Fac Robot Analysis Total . | . . . . . . . . Derelict Logs Recovered 2 | . . . 2 . . . . Drone Launches . | . . . . . . . . Drone Recoveries . | . . . . . . . . Exploration | -11 -10 -9 -9 -9 -8 -8 -7 ------------- Run | Yrd Mat Mat Min Exi Min Mat Fac Turns Passed 925 | 9 43 59 151 106 60 129 368 Spaces Moved 1706 | 18 86 118 282 210 120 239 633 Core 1706 | 18 86 118 282 210 120 239 633 Treads . | . . . . . . . . Legs . | . . . . . . . . Wheels . | . . . . . . . . Hover . | . . . . . . . . Flight . | . . . . . . . . Fastest Speed 50 | 50 50 50 50 50 50 50 50 Average Speed 50 | 50 50 50 50 50 50 50 50 Slowest Speed 50 | 50 50 50 50 50 50 50 50 Overloaded Moves . | . . . . . . . . Propulsion Burnouts . | . . . . . . . . Robots Hopped . | . . . . . . . . Cave-ins Triggered . | . . . . . . . . Exploration Rate (%) 33 | 3 22 28 59 61 43 25 29 Regions Visited 7 Branch Regions 3 Pre-discovered Areas 1 | . . . 1 . . . . Known Exits Taken 1 | . . . . . . 1 . Unknown Exits Taken 6 | 1 1 1 1 1 1 . . Scrap Searched 2 | . . . 2 . . . . Spaces Dug . | . . . . . . . . Terrain Destroyed . | . . . . . . . . Melee . | . . . . . . . . Projectile . | . . . . . . . . AOE . | . . . . . . . . Terrain Rammed . | . . . . . . . . Walls Destroyed . | . . . . . . . . Machines Disabled . | . . . . . . . . Actions | -11 -10 -9 -9 -9 -8 -8 -7 --------- Run | Yrd Mat Mat Min Exi Min Mat Fac Total 1748 | 17 85 117 291 210 119 246 663 Wait 16 | . . . 10 . . . 6 Move 1699 | 17 85 117 281 209 119 238 633 Hop . | . . . . . . . . Pick Up 7 | . . . . 1 . 1 5 Fast Attach 6 | . . . . . . 2 4 Attach 2 | . . . . . . . 2 Detach . | . . . . . . . . Swap . | . . . . . . . . Drop . | . . . . . . . . Fire . | . . . . . . . . Melee 13 | . . . . . . . 13 Ram 5 | . . . . . . 5 . Kick . | . . . . . . . . Crush . | . . . . . . . . Escape Stasis . | . . . . . . . . Rewire . | . . . . . . . . Trap . | . . . . . . . . Miscellaneous . | . . . . . . . . Route ------- -11/Scrapyard -10/Materials -9/Materials -9/Mines (discovered 2 exits: *Mat / *Exi) -9/Exiles (discovered 2 exits: [*Min x2]) -8/Mines -8/Materials (discovered 3 exits: *Fac x3) -7/Factory (discovered 1 exit: *Low) History --------- Turn | Location | Event 3 | -11/Scrapyard | Discovered new exit (range 16) 10 | -11/Scrapyard | Entered Materials 48 | -10/Materials | Discovered new exit (range 11) 53 | -10/Materials | Entered another Materials area 53 | -9/Materials | Evolved 2 slots: Utility x2 109 | -9/Materials | Discovered new exit (range 7) 112 | -9/Materials | Entered Mines 139 | -9/Mines | Learned location of Zion (-7) 139 | -9/Mines | Learned Materials terminal intel 154 | -9/Mines | Discovered new exit (range 13) 190 | -9/Mines | Met a Derelict bent on vengeance 261 | -9/Mines | Deemed a non-threat by the Exiles lab entrance 261 | -9/Mines | Discovered new exit (range 5) 263 | -9/Mines | Entered Exiles 271 | -9/Exiles | Discovered new exit (range 15) 277 | -9/Exiles | Met 8R-AWN 284 | -9/Exiles | Met EX-HEX 298 | -9/Exiles | Met EX-BIN 304 | -9/Exiles | Aligned with FarCom system 304 | -9/Exiles | Given EX-Vault access code 305 | -9/Exiles | Build established: Mutant 317 | -9/Exiles | Opened EX-Vault 320 | -9/Exiles | Found Field Lobotomy Kit 331 | -9/Exiles | Warned to stay clear of 0b10 Research branches 346 | -9/Exiles | Met EX-DEC 364 | -9/Exiles | Discovered new exit (range 14) 369 | -9/Exiles | Left Exiles lab with Field Lobotomy Kit 369 | -9/Exiles | Entered Mines 426 | -8/Mines | Discovered new exit (range 8) 429 | -8/Mines | Entered Materials 429 | -8/Materials | Evolved 2 slots: Utility x2 430 | -8/Materials | Loaded intel: 11 terminal locations 513 | -8/Materials | Identified exit to Factory 544 | -8/Materials | Core integrity fell below 50% 558 | -8/Materials | Entered Factory 558 | -7/Factory | Evolved 2 slots: Utility x2 596 | -7/Factory | Discovered new exit (range 15) 621 | -7/Factory | Identified exit to Lower Caves 671 | -7/Factory | Core integrity fell below 50% 871 | -7/Factory | Core integrity fell below 20% 926 | -7/Factory | Destroyed by H-61 Shepherd with Heavy Assault Cannon Last Messages --------------- K-01 Serf system corrupted by crushing effect. Wheel fried. K-01 Serf destroyed. Acquired 11 matter. Acquired Adv. Visual Processing Unit. K-01 Serf collects debris. Acquired Hvy. Missile Launcher. ALERT: Rogue bot located, Programmers report to Factory Zone 7C. Connecting with Terminal... >>Trojan(Botnet) Trojan loaded successfully. Testing... Terminal linked with 1 system. Awaiting botnet instructions. ALERT: Suspicious activity at Terminal F019. Dispatching Investigation squad. Penetrated by Slug. Slug penetrates Wall. Sneak attack on M-28 Smith. M-28 Smith destroyed. Map ----- +----------------------------------------------------+ | ?????????????????????????????????????????????????? | | ?????????????????????????????????????????????????? | | ?????????????????????????????????????????????????? | | ?????????????????????????????????????????????????? | | ?????????????????????????????????????????????????? | | ?????????????????????????????????????????????????? | | ?????????????????????????????????????????????????? | | ?????????????????????????????????????????????????? | | ?????????????????????????????????????????????????? | | ?????????????????????????????????????????????????? | | ?????????????????????????????????????????????????? | | ?????????????????????????????????????????????????? | | ?????????????????????????????????????????????????? | | ?????????????????????????????????????????????????? | | ?????????????????????????????????????????????????? | | ?????????????????????????????????????????????????? | | ?????????????????????????????????????????????????? | | ?????????????????????????????????????????????????? | | ?????????????????????????????????????????????????? | | ?????????????????????????????????????????????????? | | ?????????????????????????????????????????????????? | | ?????????????????????????????????????????????????? | | ?????????????????????#####+#####?????????????????? | | ?????????????#???????# #?????????????????? | | ?????????#####T ###### [ #?????????????????? | | ?????????# @ #?????????????????? | | ?????????# % #?????????????????? | | ?????????# H% #?????????????????? | | ?????????# #?????????????????? | | ?????????# #?????????????????? | | ?????????# ####### ! #?????????????????? | | ?????????# ????????# #?????????????????? | | ?????????# ??????#########+#;+#######????????????? | | ?????????????????# #????????????? | | ?????????????????# #????????????? | | ?????????????????# p #????????????? | | ?????????????????# = #????????????? | | ?????????????????# """ """ #????????????? | | ?????????????????# """"" """"" #????????????? | | ?????????????????# """"" """"" #????????????? | | ?????????????????# ! #?????????#+## | | ?????????????????#######g##################???# | | ???????????????????????# #???# #???# | | ?????????# ????????????# #???# """ " " " #???# | | ?????????# ??????????# #???# "Y" " " " #???# | | ?????????# ######### ##### " " " " " #???# | | ?????????# ^ # " " " #???# | | ?????????# ^ =# " " " #???# | | ?????????# %"* " " " #???# | | ?????????# # " " " #???# | +----------------------------------------------------+ Best States ------------- Heat Dissipation 34 Energy Generation 5 Energy Capacity 100 Matter Stores 300 Matter Capacity 300 Sight Range 20 Terrain Scan Range 16 Terrain Scan Density 210 Evasion (%) 50 Defensive Hacking 10 Item Schematics ----------------- None Robot Schematics ------------------ None Fabricated ------------ Nothing Alien Tech Used ----------------- None Achievements -------------- None Challenges ------------ None Game ------ Seed HelicalMetafiberCharge Manual? 0 Play Time 00:14:49 Cumulative 252.5 hours Start 2024.08.26 @ 21:02:49 End 2024.08.26 @ 21:15:12 Sessions 1 Manual Loads 0 Difficulty Rogue Special Mode None Game No. 471 Rogue 469 Adventurer 2 Explorer 0 Win Type - Total 14 Types 11/0/1/2/0/0/0/0/0 Lore% 74 Gallery% 68 Achievement% 57 Wizard Run 0 Options --------- Layout 0 ASCII 0 Keyboard 1 Movement Numpad Keybinds 1 Fullscreen 2 Font 18/SmallcapsGlow Map View 76x50 Zoom Use 0% Tactical HUD 1 Map Filters NONE Filters NONE Steam 1 RUN: 564de4e6-6d68-4d87-ba86-2fc21b7d0859